bitfinex-derivatives/quotes_BTCF0:USTF0_20240929
["timestamp","ask_amount","ask_price","bid_price","bid_amount"]
[1727631393755,0.11491546,65932.0,65931.0,0.05134995]
[1727631395061,0.12491546,65932.0,65931.0,0.05134995]
[1727631395467,0.11491546,65932.0,65931.0,0.41214995]
[1727631395964,0.12491546,65932.0,65931.0,0.41214995]
[1727631397069,0.11491546,65932.0,65931.0,0.40214995]
[1727631397263,0.11491546,65932.0,65931.0,0.41214995]
[1727631398155,0.03124025,65932.0,65931.0,0.64037285]
[1727631398359,0.075812,65936.0,65935.0,0.075813]
[1727631398662,0.095812,65936.0,65935.0,0.17995386]
[1727631401558,0.095812,65936.0,65935.0,0.17998309]
[1727631405562,0.095812,65936.0,65935.0,0.18998309]
[1727631406163,0.095812,65936.0,65935.0,0.17998309]
[1727631413266,0.12686582,65936.0,65932.0,0.34229151]
[1727631413576,0.0004,65933.0,65932.0,0.41810751]
[1727631413876,0.03145382,65933.0,65932.0,0.41810751]
[1727631414183,0.1151249,65933.0,65932.0,0.41810751]
[1727631414872,0.1151249,65933.0,65932.0,0.075816]
[1727631416076,0.11411383,65933.0,65932.0,0.075816]
[1727631416475,0.18992883,65933.0,65932.0,0.075816]
[1727631417081,0.18992883,65933.0,65932.0,0.09873322]
[1727631420376,0.076215,65933.0,65932.0,0.32895008]
[1727631420581,0.076215,65933.0,65932.0,0.32900708]
[1727631421180,0.03828076,65933.0,65932.0,0.32900708]
[1727631426582,0.03828076,65933.0,65932.0,0.68980708]
[1727631428274,0.10581712,65933.0,65932.0,0.45953322]
[1727631428477,0.06868684,65933.0,65932.0,0.45953322]
[1727631428876,0.15235741,65933.0,65932.0,0.45953322]
[1727631429388,0.25235741,65933.0,65932.0,0.45953322]
[1727631432090,0.15235741,65933.0,65932.0,0.45953322]
[1727631434075,0.15239473,65933.0,65932.0,0.45953322]
[1727631435088,0.20239473,65933.0,65932.0,0.45953322]
[1727631435290,0.08828076,65933.0,65932.0,0.6891824]
[1727631436482,0.08828076,65933.0,65932.0,0.3283824]
[1727631436687,0.08828076,65933.0,65932.0,0.6891824]
[1727631438687,0.04828076,65933.0,65932.0,0.6891824]
[1727631438887,0.07,65933.0,65932.0,0.6891824]
[1727631440688,0.0035,65937.0,65935.0,0.075812]
[1727631440887,0.10931,65937.0,65936.0,0.19545575]
[1727631441089,0.10581,65937.0,65936.0,0.19545575]
[1727631442288,0.10581,65937.0,65936.0,0.19645575]
[1727631443401,0.14413044,65937.0,65932.0,0.38721722]
[1727631443598,0.0004,65933.0,65932.0,0.46303322]
[1727631443791,0.03086004,65933.0,65932.0,0.45953322]
[1727631444198,0.11453044,65933.0,65932.0,0.45953322]
[1727631444502,0.12453044,65933.0,65932.0,0.45953322]
[1727631448195,0.12453044,65933.0,65932.0,0.09873322]
[1727631448502,0.12453044,65933.0,65932.0,0.45953322]
[1727631449016,0.26108672,65933.0,65932.0,0.45953322]
[1727631449996,0.12453044,65933.0,65932.0,0.45953322]
[1727631450403,0.0104,65933.0,65932.0,0.56487012]
[1727631452507,0.086215,65933.0,65932.0,0.56487012]
[1727631453907,0.086215,65933.0,65932.0,0.56488153]
[1727631454101,0.086215,65933.0,65932.0,0.20408153]
[1727631454301,0.086215,65933.0,65932.0,0.56488153]
[1727631454500,0.0104,65933.0,65932.0,0.56488153]
[1727631454693,0.0004,65933.0,65932.0,0.57488153]
[1727631456107,0.086215,65933.0,65932.0,0.69045723]
[1727631458416,0.19967376,65933.0,65932.0,0.45953322]
[1727631458712,0.19967377,65933.0,65932.0,0.45953322]
[1727631459907,0.12385877,65933.0,65932.0,0.45953322]
[1727631460111,0.19967377,65933.0,65932.0,0.45953322]
[1727631460507,0.19967377,65933.0,65932.0,0.09873322]
[1727631460811,0.19967377,65933.0,65932.0,0.45953322]
[1727631464224,0.12385877,65933.0,65932.0,0.45953322]
[1727631464623,0.19967377,65933.0,65932.0,0.45953322]
[1727631465422,0.19967377,65933.0,65932.0,0.69043932]
[1727631465423,0.086215,65933.0,65932.0,0.69043932]
[1727631466321,0.04828098,65933.0,65932.0,0.69043932]
[1727631468431,0.05828098,65933.0,65932.0,0.69043932]
[1727631473130,0.05828098,65933.0,65932.0,0.45953322]
[1727631473319,0.05828098,65933.0,65932.0,0.68969134]
[1727631478840,0.05828098,65933.0,65932.0,0.5645342]
[1727631479427,0.05828098,65933.0,65932.0,0.2037342]
[1727631480435,0.08846868,65933.0,65932.0,0.09873322]
[1727631480936,0.17214103,65933.0,65932.0,0.09873322]
[1727631481434,0.17214063,65933.0,65932.0,0.09873322]
[1727631488546,0.05828098,65933.0,65932.0,0.20372761]
[1727631490550,0.05828098,65933.0,65932.0,0.32886804]
[1727631493351,0.05828098,65933.0,65932.0,0.20372761]
[1727631494451,0.05828098,65933.0,65932.0,0.32884247]
[1727631495451,0.17219629,65933.0,65932.0,0.09873322]
[1727631498059,0.12391531,65933.0,65932.0,0.09873322]
[1727631499551,0.12391531,65933.0,65932.0,0.10873322]
[1727631499755,0.11391531,65933.0,65932.0,0.10873322]
[1727631500460,0.12391531,65933.0,65932.0,0.10873322]
[1727631500666,0.12396265,65933.0,65932.0,0.10873322]
[1727631501953,0.11396265,65933.0,65932.0,0.09873322]
[1727631502161,0.13396265,65933.0,65932.0,0.09873322]
[1727631502658,0.28568153,65933.0,65932.0,0.09873322]
[1727631503455,0.17171888,65933.0,65932.0,0.2036742]
[1727631507861,0.17171888,65933.0,65932.0,0.32867738]
[1727631510567,0.13400183,65933.0,65932.0,0.09873322]
[1727631513573,0.16327699,65933.0,65932.0,0.09873322]
[1727631513765,0.20981848,65933.0,65932.0,0.09873322]
[1727631515470,0.20978501,65933.0,65932.0,0.09873322]
[1727631518575,0.16982627,65936.0,65932.0,0.47381374]
[1727631518770,0.27982627,65936.0,65933.0,0.48089349]
[1727631518967,0.075814,65934.0,65933.0,0.18162797]
[1727631519170,0.175814,65934.0,65933.0,0.55667262]
[1727631519476,0.175814,65934.0,65933.0,0.45085965]
[1727631519666,0.175814,65934.0,65933.0,0.55667202]
[1727631520267,0.175814,65934.0,65933.0,0.44731677]
[1727631521377,0.176814,65934.0,65933.0,0.44731677]
[1727631525074,0.176814,65934.0,65933.0,0.44734947]
[1727631525688,0.176814,65934.0,65933.0,0.179715]
[1727631529674,0.176814,65934.0,65933.0,0.30354233]
[1727631529875,0.176814,65934.0,65933.0,0.179715]
[1727631530284,0.176814,65934.0,65933.0,0.30356303]
[1727631530675,0.176814,65934.0,65933.0,0.179715]
[1727631531080,0.176814,65934.0,65933.0,0.30351223]
[1727631531488,0.176814,65934.0,65933.0,0.179715]
[1727631531682,0.176814,65934.0,65933.0,0.30355713]
[1727631532583,0.001,65934.0,65933.0,0.30355713]
[1727631533583,0.03251433,65934.0,65933.0,0.075815]
[1727631533985,0.11618389,65934.0,65933.0,0.075815]
[1727631540683,0.001,65934.0,65933.0,0.30349456]
[1727631541790,0.075813,65935.0,65933.0,0.47724831]
[1727631541996,0.075813,65935.0,65934.0,0.30349356]
[1727631542894,0.075813,65935.0,65934.0,0.30350361]
[1727631543094,0.076813,65935.0,65934.0,0.30350361]
[1727631547692,0.076813,65935.0,65934.0,0.30352151]
[1727631548805,0.076813,65935.0,65934.0,0.17969698]
[1727631552613,0.076813,65935.0,65934.0,0.17931691]
[1727631555503,0.076813,65935.0,65934.0,0.30254707]
[1727631555701,0.14609744,65935.0,65934.0,0.075814]
[1727631555906,0.1926359,65935.0,65934.0,0.075814]
[1727631556110,0.2226359,65935.0,65934.0,0.075814]
[1727631557605,0.22261592,65935.0,65934.0,0.075814]
[1727631561913,0.22261592,65935.0,65934.0,0.436614]
[1727631563719,0.22261592,65935.0,65934.0,0.66326573]
[1727631563720,0.06888024,65935.0,65934.0,0.66326573]
[1727631565010,0.06888024,65935.0,65934.0,0.30246573]
[1727631565209,0.06888024,65935.0,65934.0,0.66326573]
[1727631565813,0.06888024,65935.0,65934.0,0.30246573]
[1727631566009,0.06888024,65935.0,65934.0,0.66326573]
[1727631566410,0.06888024,65935.0,65934.0,0.58745173]
[1727631567610,0.06888024,65935.0,65934.0,0.46417561]
[1727631570813,0.06888024,65935.0,65934.0,0.23941251]
[1727631570814,0.13881058,65935.0,65934.0,0.23941251]
[1727631571017,0.18535035,65935.0,65934.0,0.23941251]
[1727631571224,0.075815,65933.0,65932.0,0.02291722]
[1727631571515,0.075815,65933.0,65930.0,0.075818]
[1727631571516,0.075817,65931.0,65930.0,0.075818]
[1727631571715,0.24614734,65931.0,65930.0,0.075818]
[1727631571919,0.29268711,65931.0,65930.0,0.075818]
[1727631573619,0.29268711,65931.0,65930.0,0.10229616]
[1727631575023,0.65348711,65931.0,65930.0,0.10229616]
[1727631577226,0.65348711,65931.0,65930.0,0.02647816]
[1727631577415,0.07582,65929.0,65928.0,0.0433]
[1727631577617,0.24615034,65929.0,65928.0,0.0398]
[1727631577832,0.29269011,65929.0,65928.0,0.0398]
[1727631578314,0.29269011,65929.0,65928.0,0.06618046]
[1727631578621,0.29269011,65929.0,65928.0,0.06718046]
[1727631578828,0.0244662,65929.0,65928.0,0.43735143]
[1727631579028,0.0244662,65929.0,65928.0,0.43935143]
[1727631579712,0.1002862,65929.0,65928.0,0.43935143]
[1727631582116,0.1002862,65929.0,65928.0,0.56022846]
[1727631583616,0.1002862,65929.0,65928.0,0.43935143]
[1727631585821,0.1002862,65929.0,65928.0,0.06918046]
[1727631594039,0.15717397,65929.0,65928.0,0.43823233]
[1727631595722,0.15717397,65929.0,65928.0,0.39843233]
[1727631597340,0.15717397,65929.0,65928.0,0.51930936]
[1727631598946,0.18582,65929.0,65928.0,0.4929289]
[1727631599131,0.18582,65929.0,65928.0,0.22922303]
[1727631600433,0.64086,65929.0,65928.0,0.22922303]
[1727631600633,0.64086,65929.0,65928.0,0.003]
[1727631600837,0.77970983,65929.0,65928.0,0.003]
[1727631601342,0.67358445,65929.0,65928.0,0.003]
[1727631601937,0.21854445,65929.0,65928.0,0.003]
[1727631602138,0.25652594,65929.0,65928.0,0.003]
[1727631602547,0.32466927,65929.0,65928.0,0.003]
[1727631603041,0.21854445,65929.0,65928.0,0.003]
[1727631603243,0.32464728,65929.0,65928.0,0.003]
[1727631605145,0.21854445,65929.0,65928.0,0.003]
[1727631605645,0.57934445,65929.0,65928.0,0.003]
[1727631606143,0.68544728,65929.0,65928.0,0.003]
[1727631607142,0.57934445,65929.0,65928.0,0.003]
[1727631607846,0.54662,65929.0,65928.0,0.10584202]
[1727631608239,0.54662,65929.0,65928.0,0.18132648]
[1727631608949,0.5086772,65929.0,65928.0,0.07848446]
[1727631609542,0.1478772,65929.0,65928.0,0.07848446]
[1727631609933,0.5086772,65929.0,65928.0,0.07848446]
[1727631615440,0.5086772,65929.0,65928.0,0.18100215]
[1727631615939,0.5086772,65929.0,65928.0,0.003]
[1727631616738,0.1478772,65929.0,65928.0,0.003]
[1727631617046,0.5086772,65929.0,65928.0,0.003]
[1727631617650,0.1478772,65929.0,65928.0,0.003]
[1727631617846,0.5086772,65929.0,65928.0,0.003]
[1727631618748,0.1478772,65929.0,65928.0,0.003]
[1727631618943,0.5086772,65929.0,65928.0,0.003]
[1727631622649,0.1478772,65929.0,65928.0,0.003]
[1727631622952,0.075831,65919.0,65913.0,0.4024]
[1727631623152,0.23390641,65919.0,65913.0,0.0416]
[1727631623343,0.23390641,65919.0,65913.0,0.4024]
[1727631624155,0.40067485,65919.0,65918.0,0.20765157]
[1727631624356,0.40067485,65919.0,65918.0,0.20537608]
[1727631626253,0.23390641,65919.0,65918.0,0.20537608]
[1727631627453,0.23390641,65919.0,65918.0,0.12954408]
[1727631627659,0.59470641,65919.0,65918.0,0.12954408]
[1727631628849,0.59448786,65919.0,65918.0,0.12954408]
[1727631630646,0.23368786,65919.0,65918.0,0.12954408]
[1727631630853,0.116231,65919.0,65918.0,0.47579959]
[1727631631053,0.06,65919.0,65918.0,0.6180878]
[1727631631758,0.135831,65919.0,65918.0,0.6180878]
[1727631632157,0.135831,65919.0,65918.0,0.60307742]
[1727631632963,0.135831,65919.0,65918.0,0.49721077]
[1727631633753,0.135831,65919.0,65918.0,0.49361373]
[1727631637461,0.135831,65919.0,65918.0,0.61449076]
[1727631638061,0.135831,65919.0,65918.0,0.35271309]
[1727631638770,0.135831,65919.0,65918.0,0.35274608]
[1727631639567,0.135831,65919.0,65918.0,0.42857808]
[1727631639761,0.135831,65919.0,65918.0,0.35274608]
[1727631643466,0.135831,65919.0,65918.0,0.35276127]
[1727631644761,0.135831,65919.0,65918.0,0.27352482]
[1727631644961,0.135831,65919.0,65918.0,0.15207852]
[1727631646067,0.075833,65917.0,65916.0,0.075834]
[1727631646263,0.28623963,65917.0,65916.0,0.075834]
[1727631647470,0.28623963,65917.0,65916.0,0.089834]
[1727631647971,0.28723963,65917.0,65916.0,0.101834]
[1727631648367,0.28627495,65917.0,65916.0,0.101834]
[1727631648875,0.28627495,65917.0,65916.0,0.12749578]
[1727631650363,0.45319556,65917.0,65916.0,0.12749578]
[1727631653065,0.45319556,65917.0,65916.0,0.61403027]
[1727631653066,0.23549993,65917.0,65916.0,0.61403027]
[1727631653369,0.26549993,65917.0,65916.0,0.6140525]
[1727631656175,0.26549993,65917.0,65916.0,0.49317547]
[1727631656567,0.24549993,65917.0,65916.0,0.49317547]
[1727631661065,0.31746092,65917.0,65916.0,0.12749578]
[1727631661473,0.31746096,65917.0,65916.0,0.12749578]
[1727631661775,0.39329396,65917.0,65916.0,0.12749578]
[1727631662969,0.22637335,65917.0,65916.0,0.12749578]
[1727631668074,0.03271321,65917.0,65916.0,0.64868342]
[1727631668288,0.05271321,65917.0,65916.0,0.64868342]
[1727631669976,0.03271321,65917.0,65916.0,0.65868342]
[1727631670179,0.03271321,65917.0,65916.0,0.67868342]
[1727631670382,0.0035,65923.0,65920.0,0.075829]
[1727631670383,0.07583,65921.0,65920.0,0.075829]
[1727631670683,0.07583,65921.0,65920.0,0.6285502]
[1727631670880,0.0035,65923.0,65920.0,0.5527212]
[1727631671088,0.0635,65923.0,65922.0,0.075828]
[1727631671278,0.06,65923.0,65922.0,0.44758853]
[1727631671681,0.0035,65927.0,65926.0,0.075823]
[1727631671989,0.0039,65931.0,65930.0,0.075819]
[1727631672196,0.0004,65931.0,65930.0,0.80762827]
[1727631673184,0.03109572,65933.0,65932.0,0.075816]
[1727631673482,0.03109572,65933.0,65932.0,0.29756955]
[1727631674187,0.03109572,65933.0,65932.0,0.30756955]
[1727631675692,0.03509572,65933.0,65932.0,0.30756955]
[1727631675873,0.0035,65935.0,65932.0,0.30756955]
[1727631676079,0.08505426,65934.0,65933.0,0.153515]
[1727631676282,0.16692191,65936.0,65935.0,0.075813]
[1727631676485,0.27890287,65936.0,65935.0,0.125813]
[1727631677481,0.1336267,65936.0,65935.0,0.0509557]
[1727631678892,0.1336267,65936.0,65935.0,0.1267687]
[1727631679186,0.27562591,65936.0,65935.0,0.1277687]
[1727631679394,0.1396267,65936.0,65935.0,0.1277687]
[1727631680280,0.19641764,65936.0,65935.0,0.1277687]
[1727631680490,0.2271504,65936.0,65935.0,0.1277687]
[1727631680789,0.14797067,65936.0,65935.0,0.1277687]
[1727631680984,0.27559737,65936.0,65935.0,0.1277687]
[1727631681175,0.23155709,65936.0,65935.0,0.1277687]
[1727631681379,0.2733503,65936.0,65935.0,0.1277687]
[1727631682287,0.13737963,65936.0,65935.0,0.1277687]
[1727631682489,0.13737963,65936.0,65935.0,0.077813]
[1727631682987,0.13737963,65936.0,65935.0,0.087813]
[1727631683197,0.012,65936.0,65935.0,0.087813]
[1727631683387,0.012,65936.0,65935.0,0.077813]
[1727631687289,0.012,65936.0,65935.0,0.438613]
[1727631688798,0.012,65936.0,65935.0,0.077813]
[1727631689000,0.012,65936.0,65935.0,0.438613]
[1727631689208,0.032,65936.0,65935.0,0.438613]
[1727631691196,0.11555275,65936.0,65930.0,0.02633916]
[1727631691390,0.15144173,65931.0,65930.0,0.0735]
[1727631691588,0.18742337,65931.0,65930.0,0.07]
[1727631691787,0.22919974,65931.0,65930.0,0.07]
[1727631691990,0.18742337,65931.0,65930.0,0.07]
[1727631692193,0.27677412,65931.0,65930.0,0.07]
[1727631692393,0.12572912,65931.0,65930.0,0.07]
[1727631692791,0.12672912,65931.0,65930.0,0.145819]
[1727631693188,0.12772912,65931.0,65930.0,0.145819]
[1727631693997,0.12772912,65931.0,65930.0,0.506619]
[1727631694694,0.12431226,65931.0,65930.0,0.506619]
[1727631694901,0.12431226,65931.0,65930.0,0.145819]
[1727631695105,0.12431226,65931.0,65930.0,0.506619]
[1727631697301,0.12431226,65931.0,65930.0,0.145819]
[1727631697499,0.29123417,65931.0,65930.0,0.145819]
[1727631697705,0.29123417,65931.0,65930.0,0.506619]
[1727631698201,0.16692191,65931.0,65930.0,0.72717468]
[1727631698901,0.16692191,65931.0,65930.0,0.36637468]
[1727631699402,0.16692191,65931.0,65930.0,0.72717468]
[1727631699605,0.16692191,65931.0,65930.0,0.7272776]
[1727631701406,0.16692191,65931.0,65930.0,0.47208851]
[1727631701611,0.16692191,65931.0,65930.0,0.83288851]
[1727631702197,0.16692191,65931.0,65930.0,0.97241764]
[1727631702403,0.16692191,65931.0,65930.0,0.61161764]
[1727631702603,0.16692191,65931.0,65930.0,0.97241764]
[1727631703308,0.16692191,65931.0,65930.0,0.61161764]
[1727631703508,0.16692191,65931.0,65930.0,0.97241764]
[1727631703708,0.0035,65935.0,65934.0,0.075814]
[1727631703908,0.075811,65937.0,65936.0,0.075812]
[1727631704108,0.075811,65937.0,65936.0,0.2964706]
[1727631705608,0.075811,65937.0,65936.0,0.2974706]
[1727631705609,0.082811,65937.0,65936.0,0.2974706]
[1727631705999,0.132811,65937.0,65936.0,0.2974706]
[1727631706707,0.139811,65937.0,65936.0,0.2984706]
[1727631709199,0.139811,65937.0,65936.0,0.32549663]
[1727631712815,0.139811,65937.0,65936.0,0.20550521]
[1727631713209,0.26208051,65937.0,65936.0,0.10483803]
[1727631714220,0.26208044,65937.0,65936.0,0.10483803]
[1727631716209,0.41331861,65937.0,65936.0,0.10483803]
[1727631721325,0.139811,65937.0,65936.0,0.32599418]
[1727631721816,0.089811,65937.0,65936.0,0.32599418]
[1727631722321,0.014,65937.0,65936.0,0.32599418]
[1727631723523,0.014,65937.0,65936.0,0.35599418]
[1727631726213,0.014,65937.0,65936.0,0.71679418]
[1727631727324,0.014,65937.0,65936.0,0.71644104]
[1727631728414,0.014,65937.0,65936.0,0.59637109]
[1727631736425,0.19160209,65937.0,65936.0,0.17737459]
[1727631736726,0.19160209,65937.0,65936.0,0.25318659]
[1727631737231,0.19160209,65937.0,65936.0,0.27318659]
[1727631737424,0.1365789,65937.0,65936.0,0.27318659]
[1727631738121,0.1365789,65937.0,65936.0,0.095812]
[1727631738623,0.1365789,65937.0,65936.0,0.123393]
[1727631738822,0.1365789,65937.0,65936.0,0.103393]
[1727631741315,0.1365789,65937.0,65936.0,0.113393]
[1727631741624,0.13123038,65937.0,65936.0,0.113393]
[1727631742125,0.13131412,65937.0,65936.0,0.113393]
[1727631743428,0.19708997,65941.0,65936.0,0.26277213]
[1727631743627,0.19708997,65941.0,65938.0,0.075807]
[1727631743831,0.19708997,65941.0,65936.0,0.037581]
[1727631743832,0.27289697,65941.0,65939.0,0.22519113]
[1727631744025,0.27289697,65941.0,65940.0,0.30099813]
[1727631744326,0.075807,65941.0,65940.0,0.30099813]
[1727631744522,0.083807,65941.0,65940.0,0.30099813]
[1727631744723,0.091807,65941.0,65940.0,0.30099813]
[1727631745228,0.091807,65941.0,65940.0,0.30199813]
[1727631745427,0.091807,65941.0,65940.0,0.30299813]
[1727631745428,0.095807,65941.0,65940.0,0.30299813]
[1727631746928,0.095807,65941.0,65940.0,0.30146406]
[1727631747530,0.095807,65941.0,65940.0,0.17984211]
[1727631750535,0.095807,65941.0,65940.0,0.30145492]
[1727631751034,0.095807,65941.0,65940.0,0.17984211]
[1727631751233,0.095807,65941.0,65940.0,0.30146766]
[1727631751433,0.21499396,65941.0,65940.0,0.077807]
[1727631751932,0.21499028,65941.0,65940.0,0.077807]
[1727631755030,0.13918328,65941.0,65940.0,0.077807]
[1727631756638,0.22047864,65941.0,65940.0,0.077807]
[1727631756839,0.05361773,65941.0,65940.0,0.077807]
[1727631757040,0.13918328,65941.0,65940.0,0.077807]
[1727631758651,0.13918328,65941.0,65940.0,0.30149723]
[1727631758652,0.02,65941.0,65940.0,0.30149723]
[1727631765134,0.02,65941.0,65940.0,0.17986718]
[1727631766543,0.092637,65941.0,65940.0,0.077807]
[1727631766750,0.13917084,65941.0,65940.0,0.077807]
[1727631773444,0.10014579,65941.0,65940.0,0.077807]
[1727631773649,0.135806,65941.0,65940.0,0.27051649]
[1727631774250,0.135806,65941.0,65940.0,0.3015469]
[1727631774453,0.135806,65941.0,65940.0,0.2257399]
[1727631774852,0.135806,65941.0,65940.0,0.10406171]
[1727631775160,0.135806,65941.0,65940.0,0.1947226]
[1727631775359,0.135806,65941.0,65940.0,0.10406171]
[1727631775756,1.190766,65941.0,65939.0,0.07554454]
[1727631776062,0.0004,65940.0,65938.0,0.07554454]
[1727631776359,0.1104,65940.0,65936.0,0.0035]
[1727631776557,0.1104,65940.0,65930.0,0.0790381]
[1727631776558,0.075817,65931.0,65930.0,0.0790381]
[1727631776763,0.075817,65931.0,65930.0,0.0755381]
[1727631776764,0.537017,65931.0,65930.0,0.0755381]
[1727631776951,0.075822,65927.0,65926.0,0.00227508]
[1727631777154,0.116222,65927.0,65926.0,0.00227508]
[1727631777954,0.116222,65927.0,65926.0,0.00527508]
[1727631779955,0.116222,65927.0,65926.0,0.00827508]
[1727631780558,0.23758865,65927.0,65926.0,0.00827508]
[1727631780762,0.31383105,65927.0,65926.0,0.00827508]
[1727631781956,0.1924644,65927.0,65926.0,0.00827508]
[1727631784472,0.15150231,65927.0,65926.0,0.00827508]
[1727631784653,0.25735933,65927.0,65926.0,0.00827508]
[1727631785170,0.19240614,65927.0,65926.0,0.00827508]
[1727631785558,0.15150231,65927.0,65926.0,0.00827508]
[1727631786173,0.25733964,65927.0,65926.0,0.00827508]
[1727631786853,0.15150231,65927.0,65926.0,0.00827508]
[1727631787467,0.25732066,65927.0,65926.0,0.00827508]
[1727631788554,0.22204035,65927.0,65926.0,0.00827508]
[1727631788755,0.19921805,65927.0,65926.0,0.00827508]
[1727631790773,0.19921805,65927.0,65926.0,0.10783385]
[1727631792276,0.56001805,65927.0,65926.0,0.10783385]
[1727631794761,0.19921805,65927.0,65926.0,0.10783385]
[1727631794965,0.56001805,65927.0,65926.0,0.10783385]
[1727631795174,0.4541997,65927.0,65926.0,0.10783385]
[1727631798677,0.4541997,65927.0,65926.0,0.107935]
[1727631801270,0.4541997,65927.0,65926.0,0.19859589]
[1727631801471,0.4541997,65927.0,65926.0,0.19632081]
[1727631802170,0.4541997,65927.0,65926.0,0.10565992]
[1727631803282,0.4541997,65927.0,65926.0,0.22456526]
[1727631803774,0.4541997,65927.0,65921.0,0.0804]
[1727631803775,0.50442997,65927.0,65921.0,0.0804]
[1727631803983,0.0004,65922.0,65921.0,0.156229]
[1727631804168,0.12645227,65922.0,65921.0,0.156229]
[1727631805380,0.12645227,65922.0,65921.0,0.164229]
[1727631805573,0.29303697,65922.0,65921.0,0.172229]
[1727631805974,0.29303697,65922.0,65921.0,0.164229]
[1727631806279,0.29403697,65922.0,65921.0,0.172229]
[1727631806583,0.12745227,65922.0,65921.0,0.182229]
[1727631807474,0.12745227,65922.0,65921.0,0.20937599]
[1727631808285,0.12464598,65922.0,65921.0,0.20937599]
[1727631809886,0.12464598,65922.0,65921.0,0.19937599]
[1727631810886,0.075826,65924.0,65923.0,0.075823]
[1727631811091,0.075826,65924.0,65923.0,0.55668706]
[1727631811982,0.075826,65924.0,65923.0,0.43574303]
[1727631812189,0.075826,65924.0,65923.0,0.44074303]
[1727631813281,0.075826,65924.0,65923.0,0.4382385]
[1727631813477,0.3608,65926.0,65923.0,0.48335953]
[1727631813682,0.3808,65926.0,65925.0,0.19676803]
[1727631813878,0.3808,65926.0,65925.0,0.55418353]
[1727631814982,0.3808,65926.0,65925.0,0.55818353]
[1727631817391,0.3808,65926.0,65925.0,0.56118353]
[1727631817983,0.3808,65926.0,65925.0,0.5607116]
[1727631818590,0.3808,65926.0,65925.0,0.43976757]
[1727631818892,0.32768744,65926.0,65925.0,0.18264364]
[1727631820901,0.40351044,65926.0,65925.0,0.27330753]
[1727631822993,0.40351044,65926.0,65925.0,0.27291184]
[1727631824695,0.095823,65926.0,65925.0,0.27291184]
[1727631825793,0.22421112,65926.0,65925.0,0.0069489]
[1727631826794,0.22421112,65926.0,65925.0,0.0827729]
[1727631828486,0.14838812,65926.0,65925.0,0.0827729]
[1727631828690,0.12838812,65926.0,65925.0,0.1227729]
[1727631828898,0.20421112,65926.0,65925.0,0.1227729]
[1727631829295,0.29195826,65926.0,65925.0,0.1227729]
[1727631829600,0.34069047,65926.0,65925.0,0.0827729]
[1727631831691,0.20421112,65926.0,65925.0,0.0827729]
[1727631831892,0.21231153,65926.0,65925.0,0.0827729]
[1727631832188,0.2491714,65926.0,65925.0,0.0827729]
[1727631832392,0.34069965,65926.0,65925.0,0.0827729]
[1727631832991,0.34069965,65926.0,65925.0,0.0927729]
[1727631833189,0.34069965,65926.0,65925.0,0.0827729]
[1727631833889,0.075823,65926.0,65925.0,0.30112349]
[1727631834293,0.075823,65926.0,65925.0,0.31112349]
[1727631834593,0.075823,65926.0,65925.0,0.30112349]
[1727631836197,0.0004,65927.0,65925.0,0.30112349]
[1727631836198,0.0004,65927.0,65925.0,0.54519588]
[1727631836403,0.075823,65926.0,65925.0,0.18855336]
[1727631836708,0.075823,65926.0,65925.0,0.5458841]
[1727631837001,0.075823,65926.0,65925.0,0.40759224]
[1727631837305,0.075823,65926.0,65925.0,0.30181178]
[1727631838498,0.075823,65926.0,65925.0,0.29881178]
[1727631838698,0.075823,65926.0,65925.0,0.30181178]
[1727631838901,0.075823,65926.0,65925.0,0.54543605]
[1727631839308,0.075823,65926.0,65925.0,0.54243605]
[1727631839596,0.075823,65926.0,65925.0,0.54543605]
[1727631840402,0.075823,65926.0,65925.0,0.43965559]
[1727631840908,0.22751959,65926.0,65925.0,0.0827729]
[1727631841116,0.35505053,65926.0,65925.0,0.0827729]
[1727631841309,0.20335394,65926.0,65925.0,0.0827729]
[1727631842004,0.21335394,65926.0,65925.0,0.0827729]
[1727631849011,0.34429828,65930.0,65925.0,0.43902525]
[1727631849213,0.075822,65927.0,65926.0,0.47720067]
[1727631849411,0.095822,65927.0,65926.0,0.47720067]
[1727631850117,0.095822,65927.0,65926.0,0.55302367]
[1727631850613,0.095822,65927.0,65926.0,0.41650265]
[1727631850820,0.095822,65927.0,65926.0,0.55333878]
[1727631851013,0.095822,65927.0,65926.0,0.55533878]
[1727631853320,0.095822,65927.0,65926.0,0.56533878]
[1727631853518,0.095822,65927.0,65926.0,0.55533878]
[1727631854908,0.095822,65927.0,65926.0,0.43439046]
[1727631855519,0.34429828,65930.0,65929.0,0.07582]
[1727631855713,0.53011728,65930.0,65929.0,0.42925305]
[1727631855915,0.66115389,65930.0,65926.0,0.005]
[1727631856124,0.35858795,65929.0,65926.0,0.045]
[1727631856420,0.13103661,65928.0,65927.0,0.075822]
[1727631856812,0.13654783,65928.0,65927.0,0.075822]
[1727631857008,0.26758444,65928.0,65927.0,0.075822]
[1727631858212,0.26758444,65928.0,65927.0,0.076822]
[1727631858416,0.26758444,65928.0,65927.0,0.086822]
[1727631859321,0.26758444,65928.0,65927.0,0.076822]
[1727631859527,0.26758444,65928.0,65927.0,0.078822]
[1727631859824,0.35340544,65928.0,65927.0,0.078822]
[1727631860424,0.35109518,65928.0,65927.0,0.078822]
[1727631860625,0.21454735,65928.0,65927.0,0.078822]
[1727631861929,0.21455109,65928.0,65927.0,0.078822]
[1727631863928,0.15173134,65929.0,65927.0,0.55490826]
[1727631864134,0.18173134,65929.0,65928.0,0.35513794]
[1727631865028,0.25755134,65929.0,65928.0,0.43095894]
[1727631866220,0.10582,65929.0,65928.0,0.43095894]
[1727631869632,0.46662,65929.0,65928.0,0.19002844]
[1727631869835,0.075824,65925.0,65924.0,0.0035]
[1727631870028,0.075832,65918.0,65917.0,0.10581413]
[1727631870223,0.075832,65918.0,65917.0,0.1168585]
[1727631870224,0.537032,65918.0,65917.0,0.1168585]
[1727631870935,0.075838,65913.0,65912.0,0.0438]
[1727631871129,0.18648043,65913.0,65912.0,0.0403]
[1727631871333,0.27927412,65913.0,65912.0,0.0403]
[1727631871734,0.27927412,65913.0,65912.0,0.06722596]
[1727631872231,0.15803169,65913.0,65912.0,0.06722596]
[1727631872428,0.16803169,65913.0,65912.0,0.06722596]
[1727631872625,0.16303169,65913.0,65912.0,0.06722596]
[1727631873036,0.16403169,65913.0,65912.0,0.07522596]
[1727631873340,0.16403169,65913.0,65912.0,0.08922596]
[1727631874531,0.15403169,65913.0,65912.0,0.08922596]
[1727631874727,0.10934619,65913.0,65912.0,0.08922596]
[1727631874934,0.15359158,65913.0,65912.0,0.08922596]